Cogmind - Beta 15 @@@ ROGUE MODE // 2025.08.17 @ 10:56:46 Player: StaticNoob Result: Escaped! Performance ------------- Evolutions (9) 4500 Regions Visited (23) 4600 Robots Destroyed (354) 1770 Value Destroyed (17203) 17203 Prototype IDs (43) 860 Alien Tech Used (0) 0 Bonus (12177) 12177 TOTAL SCORE: 41110 Bonus ------- High Alert Combat Kills 2365 Follower Combat Kills 1812 Entered Garrisons 1200 Used RIF Installer 3500 Aligned with FarCom 300 Win 3000 Cogmind --------- Core Integrity 1480/1600 Matter 300/300 Energy 112/200 System Corruption 5% Temperature Cool (12) Movement Treading (166) Location To Epsilon Eridani Parts ------- > --- POWER (2) -------- Micro Fission Core Micro Antimatter Reactor > --- PROPULSION (6) --- Armored Heavy Treads Armored Heavy Treads Centrium Heavy Treads > --- UTILITY (13) ----- Advanced Cooling System High-capacity Storage Unit Advanced Targeting Computer Advanced Target Analyzer Advanced Target Analyzer Improved Kinecellerator Advanced Weapon Cycler Graphene Brace Relay Coupler [NC] (6) Relay Coupler [Grunt] (14) Relay Coupler [Sentry] (14) Long-range Tractor Beam > --- WEAPON (4) ------- Heavy Linear Accelerator Gamma Bomb Array Advanced Remote Datajack > --- INVENTORY (20) --- Armored Medium Treads Matter Compressor (250) Advanced Point Defense System Relay Coupler [Swarmer] (47) Relay Coupler [Brawler] (31) Relay Coupler [Demolisher] (17) Enhanced Nova Cannon Enhanced Nova Cannon Datajack Peak State ------------ > --- POWER ------------ Micro Fission Core Quantum Reactor > --- PROPULSION ------- Armored Heavy Treads Armored Heavy Treads Centrium Heavy Treads > --- UTILITY ---------- Advanced Coolant Injector High-capacity Storage Unit Advanced Signal Interpreter Advanced Targeting Computer Advanced Target Analyzer Advanced Target Analyzer Improved Kinecellerator Transmission Jammer Layered Heavy Armor Plating Graphene Brace Relay Coupler [Grunt] Relay Coupler [Sentry] > --- WEAPON ----------- Enhanced Nova Cannon KE Penetrator Heavy Linear Accelerator > --- INVENTORY -------- Particle Reactor Reinforced Quantum Reactor Armored Medium Treads Advanced Heat Sink Advanced Cooling System Matter Compressor Advanced Weapon Cycler Advanced Point Defense System Relay Coupler [NC] Relay Coupler [Swarmer] Relay Coupler [Swarmer] Relay Coupler [Grunt] Relay Coupler [Brawler] Relay Coupler [Demolisher] Long-range Tractor Beam Enhanced Nova Cannon Gamma Bomb Array Datajack Advanced Remote Datajack [Rating: 172] Favorites ----------- Power Light Nuclear Core Engine Hybrid Deuterium Engine Power Core Light Nuclear Core Reactor Light Antimatter Reactor Propulsion Light Treads Treads Light Treads Leg Aluminum Leg Utility High-capacity Storage Unit Device Advanced Coolant Injector Storage High-capacity Storage Unit Processor Improved Targeting Computer Hackware Relay Coupler [Grunt] Protection Improved Medium Armor Plating Weapon Gauss Rifle Energy Cannon Matter Neutralizer Ballistic Gun Gauss Rifle Ballistic Cannon Heavy Linear Accelerator Launcher Shock Bomb Launcher Special Weapon Advanced Remote Datajack Slashing Weapon Longsword +1 Special Melee Weapon Datajack Build | -11 -10 -9 -9 -9 -8 -8 -8 -8 -8 -8 -8 -8 -6 -6 -5 -5 -4 -4 -4 -4 -3 -2 -1 ------- Run | Yrd Mat Mat Min Exi Min Mat Gar Mat Sto Gar Rec Scr Fac Gar Fac Gar Fac Gar Fac Gar Res Res Acc Slots Evolved 18 | . . 2 . . . 2 . . . . . . 4 . 2 . 2 . . . 2 2 2 Power 1 | . . . . . . . . . . . . . . . 1 . . . . . . . . Propulsion 4 | . . 1 . . . 1 . . . . . . . . . . . . . . 1 1 . Utility 11 | . . . . . . 1 . . . . . . 3 . 1 . 2 . . . 1 1 2 Weapon 2 | . . 1 . . . . . . . . . . 1 . . . . . . . . . . Parts Attached 227 | 7 4 22 3 . 9 12 23 1 2 3 5 . 3 14 3 16 3 25 2 21 11 27 11 Power 31 | 1 2 3 1 . . 2 2 . . 1 . . . 2 2 2 . 2 . 3 2 4 2 Engine 9 | 1 2 1 1 . . . 1 . . . . . . . 1 1 . . . 1 . . . Core 12 | . . 2 . . . 2 1 . . 1 . . . 1 1 1 . 1 . 1 . 1 . Reactor 10 | . . . . . . . . . . . . . . 1 . . . 1 . 1 2 3 2 Propulsion 67 | 2 . 11 . . 3 4 10 . 1 1 2 . . 4 . 5 . 6 . 6 5 7 . Treads 45 | 2 . 8 . . . . 4 . 1 1 2 . . 4 . 5 . 6 . . 5 7 . Leg 22 | . . 3 . . 3 4 6 . . . . . . . . . . . . 6 . . . Wheel . | . . . . . . . . . . . . . . . . . . . . . . . . Hover . | . . . . . . . . . . . . . . . . . . . . . . . . Flight . | . . . . . . . . . . . . . . . . . . . . . . . . Utility 71 | 2 . 2 1 . . 4 6 1 . . . . 3 3 1 7 3 12 2 6 4 7 7 Device 22 | 1 . . . . . 2 4 . . . . . 1 1 . 1 3 2 . 1 1 3 2 Storage 4 | 1 . 2 . . . . . 1 . . . . . . . . . . . . . . . Processor 12 | . . . 1 . . 1 . . . . . . . . 1 1 . 1 . 1 3 3 . Hackware 24 | . . . . . . . . . . . . . 2 1 . 3 . 8 2 4 . . 4 Protection 9 | . . . . . . 1 2 . . . . . . 1 . 2 . 1 . . . 1 1 Artifact . | . . . . . . . . . . . . . . . . . . . . . . . . Weapon 58 | 2 2 6 1 . 6 2 5 . 1 1 3 . . 5 . 2 . 5 . 6 . 9 2 Energy Gun . | . . . . . . . . . . . . . . . . . . . . . . . . Energy Cannon 5 | . . . . . . . 1 . . . . . . 1 . . . . . . . 2 1 Ballistic Gun 34 | 2 2 5 1 . 2 . 3 . . . 1 . . 3 . 2 . 3 . 6 . 4 . Ballistic Cannon 2 | . . . . . . . . . . . . . . . . . . 1 . . . 1 . Launcher 9 | . . 1 . . 2 2 . . 1 . 2 . . . . . . . . . . 1 . Special Weapon 4 | . . . . . . . . . . 1 . . . 1 . . . 1 . . . . 1 Impact Weapon . | . . . . . . . . . . . . . . . . . . . . . . . . Slashing Weapon 2 | . . . . . 2 . . . . . . . . . . . . . . . . . . Piercing Weapon . | . . . . . . . . . . . . . . . . . . . . . . . . Special Melee Weapon 2 | . . . . . . . 1 . . . . . . . . . . . . . . 1 . Unidentified Prototypes 2 | . . . . . . . . . . . 1 . . . . . . . . . . 1 . Parts Lost 92 | . 5 1 3 . 2 1 17 . . . 1 . . 8 . 7 . 8 3 11 1 17 7 Power 16 | . 2 . 1 . . . 2 . . . . . . 1 . 2 . 1 1 2 1 2 1 Propulsion 27 | . 1 . . . 2 . 7 . . . . . . 2 . 3 . 2 2 5 . 3 . Utility 21 | . . . 1 . . . 2 . . . . . . 2 . . . 4 . 2 . 5 5 Weapon 28 | . 2 1 1 . . 1 6 . . . 1 . . 3 . 2 . 1 . 2 . 7 1 Highest Loss Streak 11 | . 3 1 2 . 2 1 7 . . . 1 . . 4 . 5 . 3 1 7 1 11 2 To Critical Strikes . | . . . . . . . . . . . . . . . . . . . . . . . . Average Backups 16 | 1 3 10 14 15 13 14 12 15 17 19 19 20 16 18 19 18 18 18 19 19 19 19 14 Power 1 | . . . . 1 1 1 1 1 1 1 1 1 1 1 1 1 . . . . 1 2 1 Propulsion 1 | . . 1 2 2 2 1 . 2 2 3 3 3 3 3 2 . . 1 2 . . . 1 Utility 9 | . . 1 2 3 3 3 8 9 9 10 11 12 9 10 11 13 15 13 12 13 13 12 9 Weapon 3 | . 2 6 8 8 6 7 1 2 3 4 2 3 3 3 4 3 3 2 3 4 4 2 1 Tool/Special . | . . . . . . . . . . . . . . . . . . . . . . . . Unused Backups 35 | . . 5 . 1 . 1 8 . . 1 1 . . . 1 4 1 3 1 3 . . 5 Power 2 | . . 1 . . . 1 . . . . . . . . . . . . . . . . . Propulsion 3 | . . . . . . . . . . 1 . . . . . 2 . . . . . . . Utility 18 | . . . . . . . 5 . . . . . . . 1 1 1 2 . 3 . . 5 Weapon 12 | . . 4 . 1 . . 3 . . . 1 . . . . 1 . 1 1 . . . . Tool/Special . | . . . . . . . . . . . . . . . . . . . . . . . . Average Slot Usage (%) 96 | . 95 97 99 100 99 93 91 100 100 100 100 100 99 93 93 94 99 99 93 95 96 95 80 Engine 3 | . 12 1 9 11 11 3 4 9 9 1 . . . . . 3 10 6 3 4 4 . . Core 3 | . . 9 1 . . 5 2 . . 7 9 9 6 1 4 3 . 2 1 . . . 4 Reactor 1 | . . . . . . . . . . . . . . 4 5 3 . . 5 4 3 7 3 Treads 21 | . 25 29 33 33 2 3 18 36 36 36 36 36 26 20 17 18 21 20 20 4 15 22 12 Leg 4 | . . 1 . . 29 31 13 . . . . . . . . . . . . 13 5 . . Device 9 | . 14 11 4 . . 4 7 9 9 9 9 9 12 13 11 5 14 12 9 10 10 13 17 Storage 7 | . 14 11 11 11 11 9 9 9 9 9 9 9 6 6 5 5 5 5 5 5 4 4 4 Processor 4 | . . . 5 11 11 8 4 . . . . . . . 5 5 5 5 5 7 12 13 13 Hackware 8 | . . . . . . . . . . . . . 12 13 11 16 15 18 24 22 19 13 12 Protection 3 | . . . . . . 1 5 9 9 9 9 9 6 4 5 4 5 4 2 . . 2 1 Ballistic Gun 18 | . 28 32 32 33 6 . 13 27 26 26 22 27 20 16 17 16 14 12 5 16 18 15 1 Launcher 1 | . . . . . 9 14 2 . . . . . . 2 . . . . . . . . . Special Weapon 1 | . . . . . . . . . . . . . 6 6 5 5 5 5 5 1 . . 2 Slashing Weapon 1 | . . . . . 17 11 5 . . . . . . . . . . . . . . . . Peak Build Rating 172 | 7 7 17 18 18 24 33 37 36 37 39 39 37 48 70 75 82 86 91 92 110 124 162 172 Average Rating 63 | 5 6 15 16 17 22 28 32 36 36 38 38 37 47 60 74 73 83 84 89 99 115 145 165 On Entrance 52 | . 7 6 17 17 18 24 32 36 36 37 39 37 37 48 67 75 73 84 91 84 109 121 160 Naked Turns . | . . . . . . . . . . . . . . . . . . . . . . . . Heaviest Build 148 | 12 13 35 39 36 39 43 53 67 69 71 71 64 68 85 95 95 96 111 111 96 94 133 148 Greatest Support 202 | 40 40 60 60 60 60 50 100 100 100 100 100 100 100 120 110 130 113 113 99 92 150 202 200 Greatest Overweight (x) 25 | . . 1 . . 3 1 11 . . . . . . . . 1 . 1 1 25 2 . 1 Average Overweight (x) . | . . . . . 1 . . . . . . . . . . . . . 1 . . . . Largest Inventory Capacity 20 | 8 8 15 15 15 15 15 15 20 20 20 20 20 20 20 20 20 20 20 20 20 20 20 20 Average Capacity 17 | 7 8 11 15 15 15 15 15 19 20 20 20 20 20 20 20 20 20 20 20 20 20 20 20 Most Carried 20 | 2 5 15 15 15 15 15 15 16 19 20 20 20 19 20 20 20 20 20 20 20 20 20 19 Average Carried 16 | 1 3 10 14 15 13 14 12 15 17 19 19 20 16 18 19 18 19 19 19 19 19 19 14 Final Capacity 20 | 8 8 15 15 15 15 15 15 20 20 20 20 20 20 20 20 20 20 20 20 20 20 20 20 Final Carried 20 | 2 5 15 15 15 14 14 15 16 19 20 20 20 16 20 20 20 20 20 17 20 20 20 9 Class Distribution -------------------- 18% | Scavenger-Gunner 17% | Scavenger-Skirmisher 13% | Botlord-Gunner 11% | Bothacker-Tank 9% | Botlord-Skirmisher 6% | Mutant 5% | Botlord-Tank 4% | Commander-Skirmisher 3% | Bothacker-Skirmisher Dominant Class ---------------- Mutant | -10/Materials Scavenger-Gunner | -9/Materials Scavenger-Gunner | -9/Mines Scavenger-Gunner | -9/Exiles Mutant | -8/Mines Scavenger-Mutant | -8/Materials Scavenger-Skirmisher | -8/Garrison Scavenger-Skirmisher | -8/Materials Scavenger-Skirmisher | -8/Storage Scavenger-Skirmisher | -8/Garrison Commander-Skirmisher | -8/Recycling Bothacker-Tank | -8/Scraptown Scavenger-Skirmisher | -6/Factory Commander-Tank | -6/Garrison Bothacker-Tank | -5/Factory Bothacker-Tank | -5/Garrison Botlord-Skirmisher | -4/Factory Botlord-Gunner | -4/Garrison Botlord-Skirmisher | -4/Factory Scavenger-Gunner | -4/Garrison Botlord-Skirmisher | -3/Research Botlord-Tank | -2/Research Botlord-Gunner | -1/Access Resources | -11 -10 -9 -9 -9 -8 -8 -8 -8 -8 -8 -8 -8 -6 -6 -5 -5 -4 -4 -4 -4 -3 -2 -1 ----------- Run | Yrd Mat Mat Min Exi Min Mat Gar Mat Sto Gar Rec Scr Fac Gar Fac Gar Fac Gar Fac Gar Res Res Acc Matter Collected 14153 | 219 223 1066 168 . 215 242 689 23 316 642 224 29 108 664 . 1297 . 1118 533 1724 702 2897 1054 Remotely 4468 | . . . . . . 135 . . . . . . . . . 372 . . 466 710 . 1953 832 Salvage Created 16625 | 19 446 1639 281 . 451 515 1091 41 349 829 388 . . 958 . 944 . 1289 390 822 1032 4185 956 Parts 911 | 4 33 100 21 . 38 29 62 4 30 52 17 . . 40 . 41 . 46 20 45 53 230 46 Haulers Intercepted 10 | . 1 5 . . . . . 1 1 . . . . . . . . . . . 1 1 . Recyclers Shooed 12 | . 1 1 1 . . . . . . . 1 . . . . . . . . . 1 7 . Parts Field Recycled . | . . . . . . . . . . . . . . . . . . . . . . . . Retrieved Matter . | . . . . . . . . . . . . . . . . . . . . . . . . Parts Self-Destructed . | . . . . . . . . . . . . . . . . . . . . . . . . Prevented . | . . . . . . . . . . . . . . . . . . . . . . . . Kills | -11 -10 -9 -9 -9 -8 -8 -8 -8 -8 -8 -8 -8 -6 -6 -5 -5 -4 -4 -4 -4 -3 -2 -1 ------- Run | Yrd Mat Mat Min Exi Min Mat Gar Mat Sto Gar Rec Scr Fac Gar Fac Gar Fac Gar Fac Gar Res Res Acc Combat Hostiles Destroyed 272 | . 11 27 8 . 13 9 26 . 8 20 7 . . 21 . 17 . 20 10 17 9 33 16 Melee 14 | . . . . . 1 6 7 . . . . . . . . . . . . . . . . Guns 176 | . 10 23 8 . 3 . 7 . 4 20 4 . . 12 . 17 . 16 1 9 9 33 . Cannons 34 | . . . . . . . 2 . . . 1 . . 2 . . . 2 7 5 . . 15 AOE 47 | . 1 4 . . 9 3 10 . 4 . 2 . . 7 . . . 2 2 2 . . 1 Classes Destroyed 20 | 1 5 5 . . 1 . 3 . . . 1 . . 1 . . . . 1 . . 2 . Worker 18 | . . 3 . . 2 . . . 2 . . . . . . . . . 2 . . 7 2 Builder 13 | . . 2 1 . . 1 . . 1 . . . . . . . . . 1 . . 4 3 Tunneler 9 | 1 . 1 3 . 4 . . . . . . . . . . . . . . . . . . Hauler 10 | . 1 5 . . . . . 1 1 . . . . . . . . . . . 1 1 . Recycler 12 | . 2 1 1 . . . . . . . . . . . . . . . 1 . 1 6 . Carrier 1 | . . . . . . . . . . . . . . . . . . . . . . 1 . Operator 3 | . . 1 . . . . . . . . . . . . . . . . 1 . 1 . . Watcher 13 | . 2 5 . . . . . . . . . . . . . . . 1 . . . 4 1 Swarmer 61 | . 7 3 8 . 9 . . . 5 3 . . . 7 . 4 . 3 3 6 . . 3 Cutter 6 | . . . . . . . 3 . . . . . . 3 . . . . . . . . . Grunt 87 | . 4 13 . . 3 4 10 . . 9 2 . . 5 . 10 . 8 2 2 2 9 4 Brawler 5 | . . 2 . . . . 1 . . 1 . . . . . . . . . . . 1 . Duelist 6 | . . . . . . . . . . . 1 . . 3 . . . . . 2 . . . Protector 1 | . . . . . . . . . . . . . . . . . . . . . . 1 . Sentry 48 | . . 9 . . . 3 7 . 3 4 3 . . 3 . 1 . 5 1 2 3 3 1 Specialist 1 | . . . . . . . . . . . . . . 1 . . . . . . . . . Hunter 23 | . . . . . 1 2 3 . . . 1 . . . . 1 . 1 3 2 3 6 . Programmer 31 | . . . . . . . 1 . . 3 . . . . . . . 3 . 3 1 12 8 Heavy 3 | . . . . . . . . . . . . . . . . . . . 1 . . 1 1 Behemoth 3 | . . . . . . . 1 . . . . . . . . 1 . 1 . . . . . Best Kill Streak 12 | 1 3 7 8 . 5 5 4 1 6 6 2 . . 5 . 4 . 5 5 5 4 12 5 Combat Bots Only 7 | . 3 5 6 . 3 4 4 . 4 6 2 . . 5 . 4 . 5 3 5 3 7 4 Max Kills in Single Turn 5 | 1 2 2 2 . 4 2 2 1 5 2 2 . . 3 . 1 . 2 2 2 2 3 2 Gunslinging 1 | . . 1 1 . . . 1 . . . . . . 1 . . . . . 1 . 1 . Exploded 4 | . 1 2 . . 3 2 2 . 4 . 2 . . 3 . . . 1 1 1 . . 1 Melee 1 | . . . . . 1 1 1 . . . . . . . . . . . . . . . . Uniques/NPCs Destroyed . | . . . . . . . . . . . . . . . . . . . . . . . . Combat | -11 -10 -9 -9 -9 -8 -8 -8 -8 -8 -8 -8 -8 -6 -6 -5 -5 -4 -4 -4 -4 -3 -2 -1 -------- Run | Yrd Mat Mat Min Exi Min Mat Gar Mat Sto Gar Rec Scr Fac Gar Fac Gar Fac Gar Fac Gar Res Res Acc Hostile Shots Fired 1463 | . 107 86 23 . 39 29 125 4 10 48 18 . 6 106 . 188 . 128 38 130 38 205 135 Missed 413 | . 26 22 3 . 8 13 38 1 3 15 4 . 1 32 . 62 . 36 9 36 15 54 35 Hits 1050 | . 81 64 20 . 31 16 87 3 7 33 14 . 5 74 . 126 . 92 29 94 23 151 100 Melee 23 | . . 2 . . . . . . . . . . . 7 . . . . . 14 . . . Projectile 1027 | . 81 62 20 . 31 16 87 3 7 33 14 . 5 67 . 126 . 92 29 80 23 151 100 AOE 5 | . . . . . . . 3 . . . . . . 2 . . . . . . . . . Critical Strikes 43 | . . 4 . . 4 . 5 . . 1 . . 2 . . . . 6 . 5 1 8 7 Actively Blocked 7 | . . . . . . . . . . . . . . . . . . 2 . . . 1 4 Part Disruptions 2 | . . . . . . . . . . . . . . . . . . . . . . . 2 Damage Taken 18470 | . 712 856 152 . 480 259 1713 44 64 491 241 . 136 1168 . 2114 . 1229 598 1641 445 3612 2515 Core 1778 | . 101 97 . . 46 30 206 . 6 70 . . . 108 . 238 . 124 21 337 54 220 120 Absorbed by Shields 2384 | . . . . . . . 5 . . . . . . 141 . 562 . 633 . 152 . 891 . Reduced by Siege Mode 21 | . . . . . . . . . . . . . . . . 21 . . . . . . . Core Remaining (%) 75 | 100 59 . . . 64 . . . . . . 43 . 87 . 76 . . . 58 95 84 92 Volleys Fired 866 | 5 47 86 19 . 22 3 56 3 24 49 14 . 8 58 . 81 3 74 42 71 24 105 72 Largest 4 | 2 2 3 3 . 3 2 3 3 3 3 3 . 3 3 . 3 1 3 2 4 4 4 3 Hottest 235 | 40 40 69 69 . 66 69 90 84 84 90 146 . 81 158 . 86 105 163 100 160 160 235 223 Shots Fired 2099 | 10 92 243 56 . 44 6 89 9 59 139 40 . 16 108 . 221 3 176 54 167 93 367 107 Gun 1755 | 10 92 240 56 . 33 . 48 9 56 136 29 . 12 77 . 211 . 143 12 139 92 354 6 Cannon 190 | . . . . . . . 20 . . 1 7 . . 5 . . 3 16 35 12 1 12 78 Launcher 79 | . . 3 . . 11 6 21 . 3 . 4 . . 18 . . . . . 7 . 1 5 Special 75 | . . . . . . . . . . 2 . . 4 8 . 10 . 17 7 9 . . 18 Kinetic 1842 | 10 92 240 56 . 33 . 48 9 56 136 29 . 12 77 . 211 . 145 47 148 92 354 47 Thermal 103 | . . . . . . . 20 . . 1 7 . . 5 . . 3 14 . 3 1 12 37 Explosive 16 | . . 3 . . 2 . 11 . . . . . . . . . . . . . . . . Electromagnetic 63 | . . . . . 9 6 10 . 3 . 4 . . 18 . . . . . 7 . 1 5 Robot Hit Streak 24 | 3 11 11 17 . 11 . 12 5 5 7 5 . 10 17 . 17 . 17 11 24 9 14 13 Robot Miss Streak 6 | 1 6 4 5 . 4 . 1 1 4 5 3 . 2 3 . 3 . 2 3 6 2 6 4 Penetration Max 2 | . . . . . . . 1 1 1 1 1 . . 1 . 1 . 1 1 1 2 2 1 Secondary Targets 32 | . 2 3 3 . 2 . 3 . . 3 . . . 2 . 5 . 3 . 1 . 5 . Max Gunslinging Chain 2 | . 1 1 1 . 1 . 2 . . 1 . . . 1 . 1 . 1 . 1 . 1 . Shots Hit Robots 1292 | 7 55 138 37 . 29 15 70 6 21 87 19 . 12 60 . 153 . 122 38 98 53 210 62 Core Hits 605 | 1 26 69 15 . 28 15 40 2 18 34 10 . 3 45 . 51 . 40 18 46 25 94 25 Critical Kills 69 | . . 1 . . . . . . . 2 . . . . . 1 . 4 . 6 11 44 . Critical Parts Destroyed 87 | . . . . . . . 2 . 1 . 1 . . 1 . 3 . 1 . 15 20 43 . Critical Strikes 180 | . . 1 . . . 5 5 . 1 2 1 . . 1 . 5 . 6 3 23 32 88 7 Destroy 161 | . . 1 . . . . 2 . 1 2 1 . . 1 . 5 . 6 . 22 32 88 . Blast 11 | . . . . . . . . . . . . . . . . . . . 3 1 . . 7 Sever 8 | . . . . . . 5 3 . . . . . . . . . . . . . . . . Melee Attacks 47 | . . . . . 5 15 25 . . . . . . . . . . . . . . 2 . Impact . | . . . . . . . . . . . . . . . . . . . . . . . . Slashing 45 | . . . . . 5 15 25 . . . . . . . . . . . . . . . . Piercing . | . . . . . . . . . . . . . . . . . . . . . . . . Sneak Attacks 2 | . . . . . 2 . . . . . . . . . . . . . . . . . . Combat Hostiles . | . . . . . . . . . . . . . . . . . . . . . . . . Follow-up Attacks 1 | . . . . . . . 1 . . . . . . . . . . . . . . . . Damage Inflicted 33037 | 73 728 2618 576 . 1136 925 2964 137 613 1735 569 . 168 2538 . 2782 . 3055 2497 1789 503 3575 4056 Guns 18819 | 73 520 2236 569 . 331 . 838 137 403 1735 281 . 137 1342 . 2782 . 2608 201 852 490 3059 225 Cannons 7412 | . . . . . . . 161 . . . 98 . . 142 . . . 447 1830 686 . 340 3708 Explosions 4655 | . 207 369 . . 561 201 1022 . 210 . 156 . . 1054 . . . . 466 251 . 35 123 Melee 1911 | . . . . . 244 724 943 . . . . . . . . . . . . . . . . Ramming 240 | . 1 13 7 . . . . . . . 34 . 31 . . . . . . . 13 141 . Kinetic 24329 | 73 520 2236 569 . 331 . 838 137 403 1735 281 . 137 1342 . 2782 . 2834 2031 1538 490 3059 2993 Thermal 2369 | . . . . . 95 . 161 . 49 . 98 . . 437 . . . 221 . 17 . 340 951 Explosive 1844 | . 207 369 . . 153 . 649 . . . . . . . . . . . 466 . . . . Electromagnetic 2344 | . . . . . 313 201 373 . 161 . 156 . . 759 . . . . . 234 . 35 112 Impact . | . . . . . . . . . . . . . . . . . . . . . . . . Slashing 1911 | . . . . . 244 724 943 . . . . . . . . . . . . . . . . Piercing . | . . . . . . . . . . . . . . . . . . . . . . . . Highest Corruption 11 | . 1 . . . . . 1 1 1 3 3 . . 6 . . . . . 1 . 11 5 Average Corruption 2 | . 1 . . . . . 1 1 1 2 3 . . 5 . . . . . 1 . 6 3 Corruption Purged . | . . . . . . . . . . . . . . . . . . . . . . . . Corruption Blocked . | . . . . . . . . . . . . . . . . . . . . . . . . Effects 167 | . 6 . . . . . 17 2 4 22 16 . . 29 . . . . . 11 . 47 13 Message Errors 35 | . . . . . . . 2 . . 3 8 . . 6 . . . . . 3 . 11 2 Matter Fused 38 | . 1 . . . . . 6 1 1 4 3 . . 7 . . . . . 4 . 9 2 Heat Flow Errors 25 | . 1 . . . . . 5 . 1 6 . . . 3 . . . . . . . 5 4 Energy Discharges 27 | . 3 . . . . . 3 1 . 4 3 . . 4 . . . . . 2 . 6 1 Parts Rejected 2 | . . . . . . . . . . . . . . . . . . . . . . 1 1 Parts Fused 8 | . . . . . . . . . 1 2 . . . 4 . . . . . . . 1 . Data Loss (minor) 12 | . . . . . . . 1 . . 1 1 . . 2 . . . . . 2 . 4 1 Data Loss (major) 1 | . . . . . . . . . . . . . . . . . . . . . . . 1 Misfires 5 | . . . . . . . . . . . 1 . . . . . . . . . . 3 1 Alerts 3 | . 1 . . . . . . . . . . . . 2 . . . . . . . . . Misdirections 1 | . . . . . . . . . . . . . . . . . . . . . . 1 . Weapon Failures 10 | . . . . . . . . . 1 2 . . . 1 . . . . . . . 6 . Overload Shots . | . . . . . . . . . . . . . . . . . . . . . . . . Overflow Damage 1142 | . 14 3 . . 107 . 31 . 2 . 12 . . . . . . 164 132 96 . 5 576 Projectiles 968 | . . . . . . . . . . . 3 . . . . . . 164 129 96 . . 576 Explosions 47 | . 14 3 . . 7 . 9 . 2 . 9 . . . . . . . 3 . . . . Melee 127 | . . . . . 100 . 22 . . . . . . . . . . . . . . 5 . Knockbacks 22 | . 1 . . . . . . . . . 2 . . . . . . 1 3 2 . 1 12 Impact 4 | . 1 . . . . . . . . . 2 . . . . . . . . . . 1 . Kinetic 17 | . . . . . . . . . . . . . . . . . . 1 3 2 . . 11 Secondary 1 | . . . . . . . . . . . . . . . . . . . . . . . 1 Self-Inflicted Damage 222 | . . . . . 5 . 54 . . . 21 . . 107 . . . . . . . . 35 Shots 15 | . . . . . 1 . 3 . . . 2 . . 6 . . . . . . . . 3 Rammed 20 | . 2 2 1 . . . . . . . 4 . 3 . . . . . . . 1 7 . Targets Rammed 24 | . 2 2 1 . . . . . . . 4 . 3 . . . . . . . 2 10 . Kicked 1 | . . . . . . . . . . . . . . . . . . . . . 1 . . Crushed 3 | . . . . . . . . . . . . . . . . . . . . . . 3 . Highest Temperature 417 | . 100 102 18 . 252 . 258 4 220 260 112 . 16 162 . 334 108 213 124 199 196 199 417 Average Temperature 70 | . 17 16 6 . 145 . 65 4 117 55 45 . 8 43 . 106 48 52 35 74 69 82 117 Received Heat Transfer 3256 | . 126 378 . . 252 108 528 27 9 189 45 . 87 166 . 683 . 174 27 134 64 106 153 Effects 6 | . . . . . 1 . . . . . . . . . . 2 . . . . . . 3 Shutdowns 2 | . . . . . . . . . . . . . . . . 1 . . . . . . 1 Energy Bleed 2 | . . . . . 1 . . . . . . . . . . 1 . . . . . . . Interference 2 | . . . . . . . . . . . . . . . . . . . . . . . 2 Siege Activations 1 | . . . . . . . . . . . . . . . . 1 . . . . . . . Total Turns 33 | . . . . . . . . . . . . . . . . 33 . . . . . . . Longest Duration 33 | . . . . . . . . . . . . . . . . 33 . . . . . . . Martial Activations . | . . . . . . . . . . . . . . . . . . . . . . . . Shielding Activations . | . . . . . . . . . . . . . . . . . . . . . . . . Robots Disrupted . | . . . . . . . . . . . . . . . . . . . . . . . . Combat Hostiles . | . . . . . . . . . . . . . . . . . . . . . . . . Robots Corrupted 2 | . . . . . . . . . . . . . . . . . . . . 1 . . 1 Combat Hostiles 1 | . . . . . . . . . . . . . . . . . . . . 1 . . . Parts Fried 6 | . . . . . . 2 . . . . . . . . . . . . . 1 . . 3 Impact Corruptions 2 | . . . . . . . . . . . . . . . . . . . . . . 1 1 Robots Melted . | . . . . . . . . . . . . . . . . . . . . . . . . Combat Hostiles . | . . . . . . . . . . . . . . . . . . . . . . . . Parts Melted 3 | . . . . . . . 1 . 1 . . . . 1 . . . . . . . . . Heat Transferred 2442 | . . . . . 200 . 250 . 50 . 150 . . 384 . . . 222 . 50 . 296 840 Parts Sabotaged 5 | . . . . . . . . . . . . . . . . . . . . 5 . . . Parts Stolen . | . . . . . . . . . . . . . . . . . . . . . . . . Parts Stripped . | . . . . . . . . . . . . . . . . . . . . . . . . Power Chain Reactions 13 | . . . . . 3 . . . 3 . . . . 4 . . . . . 1 . . 2 Alert | -11 -10 -9 -9 -9 -8 -8 -8 -8 -8 -8 -8 -8 -6 -6 -5 -5 -4 -4 -4 -4 -3 -2 -1 ------- Run | Yrd Mat Mat Min Exi Min Mat Gar Mat Sto Gar Rec Scr Fac Gar Fac Gar Fac Gar Fac Gar Res Res Acc Maximum Alert Level 4 | . . 1 . . . . 4 2 1 3 1 . . 3 2 3 1 3 2 4 3 3 2 Low Security (%) 22 | 100 100 51 100 . 100 100 10 . 54 . . . 100 19 . 9 . 10 . . . . . Level 1 22 | . . 48 . . . . 3 . 45 25 100 . . 20 74 9 100 32 42 2 . . 26 Level 2 34 | . . . . . . . 44 100 . 70 . . . 12 25 73 . 54 57 50 1 80 73 Level 3 17 | . . . . . . . 35 . . 4 . . . 46 . 7 . 1 . 24 98 19 . Level 4 2 | . . . . . . . 6 . . . . . . . . . . . . 22 . . . Level 5 . | . . . . . . . . . . . . . . . . . . . . . . . . High Security . | . . . . . . . . . . . . . . . . . . . . . . . . Max Security . | . . . . . . . . . . . . . . . . . . . . . . . . Peak Influence 1287 | 5 95 391 148 . 137 95 1131 583 388 771 381 . 81 977 512 761 399 724 570 1287 1070 772 620 Initial 723 | . . 26 138 . . 38 56 551 195 204 346 . . 5 512 140 399 171 380 375 723 484 388 Average 456 | . 48 193 55 . 59 52 638 525 198 480 305 . 35 535 314 497 320 427 456 784 878 606 486 Influence Increases 12348 | 5 348 924 235 . 386 255 1245 62 629 607 462 . 133 1197 48 811 6 773 524 1162 771 1036 729 Destroy 0b10 Robot/C 6480 | . 220 540 160 . 260 180 560 20 260 420 140 . 60 680 20 400 . 420 200 520 400 660 360 Destroy 0b10 Robot/NC 410 | 5 25 90 25 . 30 5 . 5 25 . . . . . . . . 5 30 . 20 115 30 Destroy Leader 1036 | . 36 180 20 . 50 70 20 2 92 30 . . 20 40 10 30 . 30 12 50 92 180 72 Allied During Kill 676 | . . . . . . . 4 6 73 11 13 . 10 171 . 27 . 15 3 105 226 . 12 Successful Hack 185 | . . 33 . . . . 28 . 2 . 17 . 17 14 18 28 . . 14 14 . . . Select Force Hacks 180 | . . . . . . . . . . . 180 . . . . . . . . . . . . Disable Machine 480 | . 30 15 . . 15 . . 15 105 . 30 . . . . . . . 165 . 15 45 45 Anti-Garrison Action 1650 | . . . . . . . 500 . . 100 . . . 200 . 250 . 250 . 350 . . . Destroy Structure 666 | . 7 21 . . 31 . 103 14 72 16 7 . 26 47 . 16 6 23 100 48 18 36 75 Lose Combat Pursuer 585 | . 30 45 30 . . . 30 . . 30 75 . . 45 . 60 . 30 . 75 . . 135 Influence Decreases 11795 | 5 286 630 591 . 287 267 201 730 778 150 921 312 125 228 825 250 522 294 712 411 1196 1251 823 Entered New Map 4711 | . . 36 218 . . 61 31 580 268 110 425 312 . 3 465 60 362 74 344 161 564 378 259 Time Decay 4554 | 5 236 584 343 . 277 196 . 150 170 . 486 . 100 . 160 . 160 . 318 . 482 553 334 Lost Part 910 | . 50 10 30 . 10 10 170 . . . 10 . . 80 . 70 . 80 30 110 10 170 70 Lost Ally 1170 | . . . . . . . . . 40 40 . . 25 145 200 120 . 140 20 140 140 . 160 Purge Threat 450 | . . . . . . . . . 300 . . . . . . . . . . . . 150 . Squads Dispatched 43 | . 2 3 . . . 3 . 3 2 . . . 1 . . . . . 5 . 10 10 4 Investigation 4 | . 1 . . . . 1 . . . . . . . . . . . . . . 1 . 1 Extermination 10 | . . . . . . . . . . . . . 1 . . . . . 1 . 4 3 1 Reinforcement 19 | . 1 3 . . . 1 . 3 . . . . . . . . . . 2 . 4 3 2 Assault 5 | . . . . . . . . . . . . . . . . . . . 2 . . 3 . Garrison 5 | . . . . . . 1 . . 2 . . . . . . . . . . . 1 1 . Intercept . | . . . . . . . . . . . . . . . . . . . . . . . . Searches Triggered . | . . . . . . . . . . . . . . . . . . . . . . . . Construction Impeded 2 | . . . . . . . . . . . . . . . . . . . . . . 1 1 Haulers Reinforced 1 | . . . . . . . . . . . . . . . . . . . . . 1 . . Active Scanning Responses . | . . . . . . . . . . . . . . . . . . . . . . . . Cargo Convoy Interrupts . | . . . . . . . . . . . . . . . . . . . . . . . . Stealth | -11 -10 -9 -9 -9 -8 -8 -8 -8 -8 -8 -8 -8 -6 -6 -5 -5 -4 -4 -4 -4 -3 -2 -1 --------- Run | Yrd Mat Mat Min Exi Min Mat Gar Mat Sto Gar Rec Scr Fac Gar Fac Gar Fac Gar Fac Gar Res Res Acc Distress Signals 14 | . 3 2 . . 1 . . 2 1 . . . . . . . . . . . 1 4 . Communications Jammed 46 | . . . . . . . . . . . . . 3 . . . . . . . . 23 20 Distress Signals 46 | . . . . . . . . . . . . . 3 . . . . . . . . 23 20 Times Spotted 421 | . 24 44 10 . 8 10 29 1 11 20 8 . 4 31 . 26 2 42 25 31 18 42 35 Peak Tracking Total 11 | . 6 5 4 . 3 2 6 1 4 4 3 . 3 6 . 5 3 11 5 6 4 4 10 Tactical Retreats 24 | . 2 1 1 . . . 2 . . 2 3 . . 2 . 2 . 2 . 4 . . 3 Traps | -11 -10 -9 -9 -9 -8 -8 -8 -8 -8 -8 -8 -8 -6 -6 -5 -5 -4 -4 -4 -4 -3 -2 -1 ------- Run | Yrd Mat Mat Min Exi Min Mat Gar Mat Sto Gar Rec Scr Fac Gar Fac Gar Fac Gar Fac Gar Res Res Acc Traps Triggered 36 | . . . . . . 5 7 . . . . . . 10 1 1 . 2 . 8 1 1 . Indirectly 7 | . . . . . . . 3 . . . . . . 4 . . . . . . . . . Trap Hack Attempts . | . . . . . . . . . . . . . . . . . . . . . . . . Triggered . | . . . . . . . . . . . . . . . . . . . . . . . . Disarmed . | . . . . . . . . . . . . . . . . . . . . . . . . Reprogrammed . | . . . . . . . . . . . . . . . . . . . . . . . . Reused . | . . . . . . . . . . . . . . . . . . . . . . . . Traps Extracted . | . . . . . . . . . . . . . . . . . . . . . . . . Installed . | . . . . . . . . . . . . . . . . . . . . . . . . Triggered . | . . . . . . . . . . . . . . . . . . . . . . . . Machines | -11 -10 -9 -9 -9 -8 -8 -8 -8 -8 -8 -8 -8 -6 -6 -5 -5 -4 -4 -4 -4 -3 -2 -1 ---------- Run | Yrd Mat Mat Min Exi Min Mat Gar Mat Sto Gar Rec Scr Fac Gar Fac Gar Fac Gar Fac Gar Res Res Acc Machines Disabled 48 | . 2 1 . . 1 . 6 1 7 . 2 . . 2 . 2 . 3 11 3 1 3 3 Max in Single Turn 4 | . 2 1 . . 1 . 2 . 1 . 1 . . 1 . 1 . 1 4 1 1 1 1 Garrison Access 2 | . . . . . . . . . . . . . . . . . . . . . . 1 1 Garrison Relay 13 | . . . . . . . 3 . . . . . . 2 . 2 . 3 . 3 . . . Phase Generator 1 | . . . . . . . 1 . . . . . . . . . . . . . . . . Machines Repaired . | . . . . . . . . . . . . . . . . . . . . . . . . Machines Dismantled . | . . . . . . . . . . . . . . . . . . . . . . . . Machines Sabotaged . | . . . . . . . . . . . . . . . . . . . . . . . . Overloaded Fab Kills . | . . . . . . . . . . . . . . . . . . . . . . . . Hacking | -11 -10 -9 -9 -9 -8 -8 -8 -8 -8 -8 -8 -8 -6 -6 -5 -5 -4 -4 -4 -4 -3 -2 -1 --------- Run | Yrd Mat Mat Min Exi Min Mat Gar Mat Sto Gar Rec Scr Fac Gar Fac Gar Fac Gar Fac Gar Res Res Acc Machines Accessed 70 | . 3 9 . 1 . 3 4 2 5 2 12 . 2 2 3 3 3 . 4 1 1 7 3 Terminals 45 | . 2 6 . . . 2 4 2 4 2 5 . 1 2 1 3 1 . 2 1 1 5 1 Fabricators 2 | . . . . . . . . . . . . . . . 1 . . . . . . . 1 Repair Stations 1 | . . 1 . . . . . . . . . . . . . . . . . . . . . Recycling Units 12 | . 1 1 . . . . . . . . 7 . . . . . 1 . 1 . . 1 . Scanalyzers 1 | . . 1 . . . . . . . . . . . . . . . . . . . . . Garrison Access 8 | . . . . . . 1 . . 1 . . . 1 . 1 . 1 . 1 . . 1 1 Total Hacks 132 | . 6 30 . 1 . 6 7 3 10 2 21 . 7 2 4 4 8 . 5 1 1 10 4 Successful 61 | . 2 14 . 1 . 3 2 . 4 . 14 . 5 1 3 2 3 . 2 1 . 3 1 Failed 71 | . 4 16 . . . 3 5 3 6 2 7 . 2 1 1 2 5 . 3 . 1 7 3 Catastrophic 25 | . 1 4 . . . 1 3 1 2 2 1 . . 1 1 1 1 . 1 . . 3 2 Database Lockouts . | . . . . . . . . . . . . . . . . . . . . . . . . Manual 75 | . 6 23 . 1 . 5 . 3 5 . 12 . 6 . 2 . 6 . 2 . . 4 . Terminals 101 | . 5 26 . . . 5 7 3 9 2 10 . 6 2 1 4 6 . 3 1 1 8 2 Fabricators 3 | . . . . . . . . . . . . . . . 2 . . . . . . . 1 Repair Stations 1 | . . 1 . . . . . . . . . . . . . . . . . . . . . Recycling Units 17 | . 1 2 . . . . . . . . 11 . . . . . 1 . 1 . . 1 . Scanalyzers 1 | . . 1 . . . . . . . . . . . . . . . . . . . . . Garrison Access 8 | . . . . . . 1 . . 1 . . . 1 . 1 . 1 . 1 . . 1 1 Terminal Hacks 24 | . . 6 . 1 . . 2 . 3 . 2 . 3 1 . 2 1 . . 1 . 2 . Robot Analysis 2 | . . 2 . . . . . . . . . . . . . . . . . . . . . Prototype ID Bank 10 | . . 4 . . . . . . . . 2 . 3 . . . 1 . . . . . . Open Door 1 | . . . . . . . . . 1 . . . . . . . . . . . . . . Open DSF 1 | . . . . . . . . . . . . . . . . . . . . . . 1 . Emergency Access Points 4 | . . . . . . . 1 . . . . . . 1 . 1 . . . 1 . . . Unreport Threat 3 | . . . . . . . . . 2 . . . . . . . . . . . . 1 . Garrison Registry 1 | . . . . . . . . . . . . . . . . 1 . . . . . . . Patrol Navigation 1 | . . . . . . . 1 . . . . . . . . . . . . . . . . Proto ID Catalog 1 | . . . . 1 . . . . . . . . . . . . . . . . . . . Fabricator Hacks 1 | . . . . . . . . . . . . . . . 1 . . . . . . . . Network Status 1 | . . . . . . . . . . . . . . . 1 . . . . . . . . Repair Station Hacks . | . . . . . . . . . . . . . . . . . . . . . . . . Recycling Unit Hacks 5 | . . 1 . . . . . . . . 4 . . . . . . . . . . . . Retrieve Components 5 | . . 1 . . . . . . . . 4 . . . . . . . . . . . . Scanalyzer 1 | . . 1 . . . . . . . . . . . . . . . . . . . . . Insert Component 1 | . . 1 . . . . . . . . . . . . . . . . . . . . . Garrison Access Hacks 8 | . . . . . . 1 . . 1 . . . 1 . 1 . 1 . 1 . . 1 1 Unlock Access 6 | . . . . . . 1 . . 1 . . . 1 . 1 . 1 . 1 . . . . Seal Access 2 | . . . . . . . . . . . . . . . . . . . . . . 1 1 Unauthorized Hacks 22 | . 2 6 . . . 2 . . . . 8 . 1 . 1 . 1 . 1 . . . . Terminals 15 | . 2 6 . . . 2 . . . . 2 . 1 . . . 1 . 1 . . . . Botnet 7 | . 1 1 . . . 1 . . . . 1 . 1 . . . 1 . 1 . . . . Skim 8 | . 1 5 . . . 1 . . . . 1 . . . . . . . . . . . . Fabricators 1 | . . . . . . . . . . . . . . . 1 . . . . . . . . Fabnet 1 | . . . . . . . . . . . . . . . 1 . . . . . . . . Repair Stations . | . . . . . . . . . . . . . . . . . . . . . . . . Recycling Units 6 | . . . . . . . . . . . 6 . . . . . . . . . . . . Tunnel 6 | . . . . . . . . . . . 6 . . . . . . . . . . . . Scanalyzers . | . . . . . . . . . . . . . . . . . . . . . . . . Garrison Access . | . . . . . . . . . . . . . . . . . . . . . . . . Data Cores Recovered 2 | . . 1 . . . . . . 1 . . . . . . . . . . . . . . Used . | . . . . . . . . . . . . . . . . . . . . . . . . Hacking Detections 54 | . 3 8 . . . 2 4 2 3 2 7 . 1 1 2 2 3 . 4 1 1 6 2 Full Trace Events 3 | . 1 . . . . . . . . . . . . . . 1 . . . . . . 1 Feedback Events 1 | . 1 . . . . . . . . . . . . . . . . . . . . . . Corruption 1 | . 1 . . . . . . . . . . . . . . . . . . . . . . Feedback Blocked . | . . . . . . . . . . . . . . . . . . . . . . . . Robot Schematics Acquired . | . . . . . . . . . . . . . . . . . . . . . . . . Robots Built . | . . . . . . . . . . . . . . . . . . . . . . . . Authchips . | . . . . . . . . . . . . . . . . . . . . . . . . Time . | . . . . . . . . . . . . . . . . . . . . . . . . Total Robot Build Rating . | . . . . . . . . . . . . . . . . . . . . . . . . Part Schematics Acquired . | . . . . . . . . . . . . . . . . . . . . . . . . Parts Built . | . . . . . . . . . . . . . . . . . . . . . . . . Authchips . | . . . . . . . . . . . . . . . . . . . . . . . . Time . | . . . . . . . . . . . . . . . . . . . . . . . . Total Part Build Rating . | . . . . . . . . . . . . . . . . . . . . . . . . Parts Repaired . | . . . . . . . . . . . . . . . . . . . . . . . . Time . | . . . . . . . . . . . . . . . . . . . . . . . . Parts Recycled . | . . . . . . . . . . . . . . . . . . . . . . . . Recycled Matter . | . . . . . . . . . . . . . . . . . . . . . . . . Retrieved Matter . | . . . . . . . . . . . . . . . . . . . . . . . . Retrieved Components 7 | . . . . . . . . . . . 7 . . . . . . . . . . . . Parts Scanalyzed . | . . . . . . . . . . . . . . . . . . . . . . . . Part Schematics Acquired . | . . . . . . . . . . . . . . . . . . . . . . . . Parts Damaged . | . . . . . . . . . . . . . . . . . . . . . . . . Bothacking | -11 -10 -9 -9 -9 -8 -8 -8 -8 -8 -8 -8 -8 -6 -6 -5 -5 -4 -4 -4 -4 -3 -2 -1 ------------ Run | Yrd Mat Mat Min Exi Min Mat Gar Mat Sto Gar Rec Scr Fac Gar Fac Gar Fac Gar Fac Gar Res Res Acc Used RIF Installer 7 | . . . . . . . 1 . . 2 . . . 1 . 1 . 1 . 1 . . . Zone Cloak 1 | . . . . . . . . . . . . . . . . 1 . . . . . . . Watcher Feeds 1 | . . . . . . . . . . . . . . . . . . 1 . . . . . Patrol Navigation 1 | . . . . . . . . . . . . . . 1 . . . . . . . . . Structural Interface 1 | . . . . . . . . . . 1 . . . . . . . . . . . . . Program Shield 1 | . . . . . . . . . . . . . . . . . . . . 1 . . . Autooverride 1 | . . . . . . . . . . 1 . . . . . . . . . . . . . Robots Hacked 59 | . . . . . . . . . . . . . 1 5 . 7 . 15 7 9 . 2 13 Non-combat 4 | . . . . . . . . . . . . . . . . . . . . . . 2 2 Combat 55 | . . . . . . . . . . . . . 1 5 . 7 . 15 7 9 . . 11 Autooverrided 8 | . . . . . . . . . . . . . . 2 . 2 . 3 . . . . 1 Robot Hacks Applied 47 | . . . . . . . . . . . . . 2 3 . 5 . 11 5 5 . 2 14 parse_system 4 | . . . . . . . . . . . . . . 1 . . . 1 1 . . . 1 map_route 4 | . . . . . . . . . . . . . . . . . . . . . . 2 2 find_garrison 2 | . . . . . . . . . . . . . 1 . . . . . 1 . . . . disrupt_area 1 | . . . . . . . . . . . . . . . . 1 . . . . . . . overload_power 1 | . . . . . . . . . . . . . . . . . . 1 . . . . . amplify_resonance 9 | . . . . . . . . . . . . . . . . 1 . 4 1 2 . . 1 overwrite_iff 13 | . . . . . . . . . . . . . . . . 1 . 2 1 1 . . 8 streamctrl_high 1 | . . . . . . . . . . . . . . 1 . . . . . . . . . formatsys_high 12 | . . . . . . . . . . . . . 1 1 . 2 . 3 1 2 . . 2 Relay Couplers Released 55 | . . . . . . . 13 . . . . . . 6 . 8 . 14 . 13 . . 1 Machine Destruction 55 | . . . . . . . 13 . . . . . . 6 . 8 . 14 . 13 . . 1 Attached 24 | . . . . . . . . . . . . . 2 1 . 3 . 8 2 4 . . 4 Fabnet Peak Effective % 3 | . . . . . . . . . . . . . . . . . 3 3 3 3 1 . . Autooverrided 10 | . . . . . . . . . . . . . . . . . . 3 3 4 . . . Robots Rewired 35 | . . . . . . . 4 . . . 9 . 1 15 . . . . . 6 . . . Allies Hacked 4 | . . . . . . . . . . . . . . . 3 . . 1 . . . . . Hacks Repelled . | . . . . . . . . . . . . . . . . . . . . . . . . Allies | -11 -10 -9 -9 -9 -8 -8 -8 -8 -8 -8 -8 -8 -6 -6 -5 -5 -4 -4 -4 -4 -3 -2 -1 -------- Run | Yrd Mat Mat Min Exi Min Mat Gar Mat Sto Gar Rec Scr Fac Gar Fac Gar Fac Gar Fac Gar Res Res Acc Total Allies 80 | . . . . . . . 4 . . . 9 . 2 19 . 5 . 10 5 15 . . 11 Largest Group 14 | . . . . . . . 4 4 4 2 9 5 5 14 12 3 . 2 1 9 7 . 2 Highest-Rated Group 417 | . . . . . . . 88 88 88 48 132 96 96 417 351 43 . 116 142 400 341 . 116 Highest-Rated Ally 142 | . . . . . . . 34 34 34 30 34 34 34 47 46 29 . 116 142 80 49 . 64 Total Orders 6 | . . . . . . . . . . . 4 . . . . . . . . . 2 . . STAY 4 | . . . . . . . . . . . 4 . . . . . . . . . . . . EXPLORE 2 | . . . . . . . . . . . . . . . . . . . . . 2 . . Ally Attacks 303 | . . . . . . . 3 2 20 5 2 . 12 62 12 18 . 22 18 57 51 . 19 Total Damage 9407 | . . . . . . . 167 124 679 191 41 . 294 1634 283 205 . 709 851 1405 2099 . 725 Kills 58 | . . . . . . . 2 1 6 1 . . 3 14 1 3 . 1 2 9 13 . 2 Allies Corrupted 7 | . . . . . . . . . . . . . . . 1 . . . . 1 5 . . Allies Melted 2 | . . . . . . . . . . . . . . . . 1 . . . . . . 1 Intel | -11 -10 -9 -9 -9 -8 -8 -8 -8 -8 -8 -8 -8 -6 -6 -5 -5 -4 -4 -4 -4 -3 -2 -1 ------- Run | Yrd Mat Mat Min Exi Min Mat Gar Mat Sto Gar Rec Scr Fac Gar Fac Gar Fac Gar Fac Gar Res Res Acc Active Infowar (turns) 10196 | 9 524 1945 452 . . 1 . . . . . . 275 1591 330 1455 338 85 . . 1241 1612 338 Terrain 1700 | . . . . . . . . . . . . . . . . . 328 44 . . 1241 87 . Seismic 2931 | 9 524 1945 452 . . 1 . . . . . . . . . . . . . . . . . Jamming 6567 | . . . . . . . . . . . . . 275 1591 330 1455 338 85 . . 543 1612 338 ECM 2 | . . . . . . . . . . . . . . . . . 2 . . . . . . Robot Analysis Total 2 | . . 2 . . . . . . . . . . . . . . . . . . . . . Derelict Logs Recovered 1 | . . . 1 . . . . . . . . . . . . . . . . . . . . Drone Launches 2 | . . . . . . . . . . . . . . . . . . . . . 2 . . Drone Recoveries . | . . . . . . . . . . . . . . . . . . . . . . . . Exploration | -11 -10 -9 -9 -9 -8 -8 -8 -8 -8 -8 -8 -8 -6 -6 -5 -5 -4 -4 -4 -4 -3 -2 -1 ------------- Run | Yrd Mat Mat Min Exi Min Mat Gar Mat Sto Gar Rec Scr Fac Gar Fac Gar Fac Gar Fac Gar Res Res Acc Turns Passed 23083 | 82 524 1945 1025 335 641 417 2236 312 352 1258 1261 867 276 1591 330 1456 338 1426 708 2097 1241 1618 747 Spaces Moved 11520 | 41 221 959 599 209 290 223 1206 180 170 682 682 535 139 743 190 700 190 684 233 902 744 698 300 Core 13 | 8 . . . . . . 4 . . . . . . . . . . . . 1 . . . Treads 9557 | 33 221 914 599 209 4 . 707 180 170 682 682 535 139 743 190 700 190 684 233 201 543 698 300 Legs 1950 | . . 45 . . 286 223 495 . . . . . . . . . . . . 700 201 . . Wheels . | . . . . . . . . . . . . . . . . . . . . . . . . Hover . | . . . . . . . . . . . . . . . . . . . . . . . . Flight . | . . . . . . . . . . . . . . . . . . . . . . . . Fastest Speed 50 | 50 160 120 160 160 160 120 120 160 160 160 160 160 160 160 166 160 160 160 240 160 108 153 166 Average Speed 164 | 138 160 159 160 160 190 143 158 160 160 160 160 160 160 164 166 164 160 165 240 189 149 153 166 Slowest Speed 1300 | 160 160 240 160 160 330 190 600 160 160 160 160 160 160 170 166 255 160 240 240 1300 305 166 245 Overloaded Moves . | . . . . . . . . . . . . . . . . . . . . . . . . Propulsion Burnouts . | . . . . . . . . . . . . . . . . . . . . . . . . Robots Hopped . | . . . . . . . . . . . . . . . . . . . . . . . . Potential Cave-ins 6 | . . . . . . . 1 . . . . . . . . . . . . . . . 5 Cave-ins Triggered . | . . . . . . . . . . . . . . . . . . . . . . . . Exploration Rate (%) 47 | 4 41 87 98 41 78 18 85 14 42 75 89 55 6 89 8 72 7 77 13 81 26 28 16 Regions Visited 23 Branch Regions 6 Pre-discovered Areas 9 | . . 3 . . . . . . . . 6 . . . . . . . . . . . . Known Exits Taken 11 | . . . . . 1 1 . 1 1 . 1 . 1 . 1 . 1 . 1 . 1 1 . Unknown Exits Taken 6 | 1 1 1 1 1 . . . . . . . 1 . . . . . . . . . . . Scrap Searched 5 | . . . 1 . 1 . . . . . . 3 . . . . . . . . . . . Spaces Dug 23 | . . . . . 10 . 1 . 1 . . . . . . . 3 . . . . . 8 Terrain Destroyed 360 | . 7 18 . . 36 . 150 . 8 . 3 . 2 3 . 7 3 8 36 25 5 17 32 Melee 1 | . . . . . . . 1 . . . . . . . . . . . . . . . . Projectile 75 | . . . . . . . 1 . 1 . 3 . 1 1 . 4 3 7 12 7 . 7 28 AOE 260 | . 7 18 . . 36 . 148 . 6 . . . . 2 . . . . 24 15 . . 4 Terrain Rammed . | . . . . . . . . . . . . . . . . . . . . . . . . Walls Destroyed . | . . . . . . . . . . . . . . . . . . . . . . . . Machines Disabled . | . . . . . . . . . . . . . . . . . . . . . . . . Actions | -11 -10 -9 -9 -9 -8 -8 -8 -8 -8 -8 -8 -8 -6 -6 -5 -5 -4 -4 -4 -4 -3 -2 -1 --------- Run | Yrd Mat Mat Min Exi Min Mat Gar Mat Sto Gar Rec Scr Fac Gar Fac Gar Fac Gar Fac Gar Res Res Acc Total 14071 | 54 312 1195 626 210 340 297 1427 198 201 742 818 546 179 1021 205 845 220 854 316 1175 829 992 469 Wait 680 | . 33 87 1 . 9 19 30 11 . 3 15 12 25 37 9 22 18 45 32 74 28 97 73 Move 11502 | 40 220 958 598 208 289 223 1205 179 170 681 681 534 139 742 190 699 190 683 233 901 743 697 299 Hop . | . . . . . . . . . . . . . . . . . . . . . . . . Pick Up 129 | 2 6 16 3 1 1 5 17 2 2 1 4 . . 9 2 11 2 8 1 14 5 16 1 Fast Attach 97 | 7 1 7 1 . 4 13 14 . . . . . . 6 . 3 2 5 . 18 6 8 2 Attach 94 | . 3 2 2 . 3 4 8 . . . 1 . 4 9 2 6 1 8 3 8 6 14 10 Detach 7 | . . . . . 1 1 1 . . . . . . 2 . . . . . 1 1 . . Swap 155 | . . 15 . . 2 5 9 1 5 6 8 . . 6 1 12 2 19 4 18 5 27 10 Drop 134 | . . 22 1 1 4 9 17 2 . 2 4 . . 7 1 11 2 11 1 12 9 16 2 Fire 866 | 5 47 86 19 . 22 3 56 3 24 49 14 . 8 58 . 81 3 74 42 71 24 105 72 Melee 45 | . . . . . 5 15 23 . . . . . . . . . . . . . . 2 . Ram . | . . . . . . . . . . . . . . . . . . . . . . . . Kick 1 | . . . . . . . . . . . . . . . . . . . . . 1 . . Crush 23 | . 2 2 1 . . . . . . . 4 . 3 . . . . . . . 1 10 . Escape Stasis 37 | . . . . . . . 22 . . . . . . . . . . . . 15 . . . Rewire 301 | . . . . . . . 25 . . . 87 . . 145 . . . 1 . 43 . . . Trap . | . . . . . . . . . . . . . . . . . . . . . . . . Miscellaneous . | . . . . . . . . . . . . . . . . . . . . . . . . Route ------- -11/Scrapyard -10/Materials (discovered 2 exits: *Mat / [*Sub]) -9/Materials (discovered 4 exits: *Mat x3 / [*Min]) -9/Mines (discovered 3 exits: *Mat x2 / *Exi) -9/Exiles -8/Mines -8/Materials (discovered 3 exits: Fac / *Sto / Gar) -8/Garrison (discovered 2 exits: *Mat x2) -8/Materials -8/Storage -8/Garrison (discovered 3 exits: *Rec x3) -8/Recycling (discovered 2 exits: *Fac / *Scr) -8/Scraptown -6/Factory (discovered 3 exits: *Fac / [*Low] / Gar) -6/Garrison (discovered 3 exits: *Fac x3) -5/Factory -5/Garrison (discovered 3 exits: *Fac x3) -4/Factory -4/Garrison (discovered 3 exits: *Fac x3) -4/Factory (discovered 2 exits: [*Upp] / Gar) -4/Garrison (discovered 2 exits: *Res x2) -3/Research -2/Research -1/Access To Epsilon Eridani History --------- Turn | Location | Event 34 | -11/Scrapyard | Discovered new exit (range 16) 83 | -11/Scrapyard | Entered Materials 304 | -10/Materials | Build established: Mutant 349 | -10/Materials | Lost 3 parts (1p2w) 405 | -10/Materials | Discovered new exit (range 16) 563 | -10/Materials | Discovered new exit (range 15) 607 | -10/Materials | Entered another Materials area 607 | -9/Materials | Evolved 2 slots: Propulsion x1, Weapon x1 1024 | -9/Materials | Build established: Scavenger-Gunner 1175 | -9/Materials | Discovered new exit (range 4) 1511 | -9/Materials | Discovered new exit (range 12) 1698 | -9/Materials | Learned Storage trap positions 1747 | -9/Materials | Learned location of Recycling (-8) 1787 | -9/Materials | Identified exit to Materials 1815 | -9/Materials | Learned Storage stockpile data 1832 | -9/Materials | Learned location of 2 exits from Materials 1839 | -9/Materials | Learned 4 Recycling zone layouts 1840 | -9/Materials | Learned location of Mines (-9) 1870 | -9/Materials | Learned 4 Recycling zone layouts 1903 | -9/Materials | Loaded intel: 10 trap records 2552 | -9/Materials | Entered Mines 2613 | -9/Mines | Found a hidden stash of uninstalled traps 2686 | -9/Mines | Received a Rocket Launcher from a helpful Derelict 2827 | -9/Mines | Learned Materials terminal intel 2894 | -9/Mines | Deemed a non-threat by the Exiles lab entrance 2894 | -9/Mines | Discovered new exit (range 5) 2964 | -9/Mines | Found a damaged Exp. Sensor Array with a note attached 3102 | -9/Mines | Discovered exit to Materials (range 15) 3577 | -9/Mines | Entered Exiles 3616 | -9/Exiles | Met 8R-AWN 3643 | -9/Exiles | Met EX-HEX 3691 | -9/Exiles | Met EX-BIN 3710 | -9/Exiles | Aligned with FarCom system 3712 | -9/Exiles | Given EX-Vault access code 3749 | -9/Exiles | Opened EX-Vault 3760 | -9/Exiles | Found Longsword +1 3793 | -9/Exiles | Warned to stay clear of 0b10 Research branches 3894 | -9/Exiles | Discovered new exit (range 14) 3912 | -9/Exiles | Left Exiles lab with Longsword +1 3912 | -9/Exiles | Entered Mines 4256 | -8/Mines | Build established: Mutant 4525 | -8/Mines | Discovered exit to Materials (range 12) 4553 | -8/Mines | Entered Materials 4553 | -8/Materials | Evolved 2 slots: Propulsion x1, Utility x1 4554 | -8/Materials | Identified exit to Factory 4554 | -8/Materials | Identified exit to Storage 4555 | -8/Materials | Loaded intel: 12 terminal locations 4909 | -8/Materials | Garrison activated, responded to threat 4970 | -8/Materials | Identified exit to Garrison 4970 | -8/Materials | Entered Garrison 4978 | -8/Garrison | Build established: Scavenger-Mutant 5000 | -8/Garrison | Triggered checkpoint 5054 | -8/Garrison | Triggered checkpoint 5075 | -8/Garrison | Garrison Relay disabled 5206 | -8/Garrison | Triggered checkpoint 5274 | -8/Garrison | Lost 3 parts (1p1n1w) 5332 | -8/Garrison | Build established: Scavenger-Gladiator 5430 | -8/Garrison | Triggered checkpoint 5489 | -8/Garrison | Garrison Relay disabled 5605 | -8/Garrison | Spotted B-75 Beast 5626 | -8/Garrison | Destroyed B-75 Beast 5652 | -8/Garrison | Lost 7 parts (1p3n1u2w) 5842 | -8/Garrison | Lost 3 parts (1n2w) 5910 | -8/Garrison | Build established: Mutant 6068 | -8/Garrison | Triggered checkpoint 6175 | -8/Garrison | Discovered new exit (range 8) 6266 | -8/Garrison | Build established: Scavenger-Skirmisher 6278 | -8/Garrison | Phase Generator disabled 6526 | -8/Garrison | Triggered checkpoint 6665 | -8/Garrison | Discovered new exit (range 12) 6670 | -8/Garrison | Triggered checkpoint 6696 | -8/Garrison | Triggered checkpoint 6872 | -8/Garrison | Triggered checkpoint 6936 | -8/Garrison | Triggered checkpoint 7039 | -8/Garrison | Installed Relay Interface Framework 7206 | -8/Garrison | Entered Materials 7206 | -8/Materials | Accompanied by 4 allies 7483 | -8/Materials | Discovered exit to Storage (range 11) 7518 | -8/Materials | Entered Storage 7518 | -8/Storage | Accompanied by 4 allies 7519 | -8/Storage | Loaded intel: 19 trap records 7758 | -8/Storage | Garrison activated, responded to threat 7870 | -8/Storage | Identified exit to Garrison 7870 | -8/Storage | Entered Garrison 7870 | -8/Garrison | Accompanied by 2 allies 7918 | -8/Garrison | Triggered checkpoint 7958 | -8/Garrison | Triggered checkpoint 8064 | -8/Garrison | Triggered checkpoint 8190 | -8/Garrison | Core integrity fell below 50% 8212 | -8/Garrison | Triggered checkpoint 8294 | -8/Garrison | Discovered new exit (range 12) 8457 | -8/Garrison | Discovered new exit (range 10) 8488 | -8/Garrison | Triggered checkpoint 8722 | -8/Garrison | Expanded RIF knowledge: Structural Interface 8858 | -8/Garrison | Triggered checkpoint 9008 | -8/Garrison | Expanded RIF knowledge: Autooverride 9018 | -8/Garrison | Discovered new exit (range 11) 9020 | -8/Garrison | Triggered checkpoint 9128 | -8/Garrison | Entered Recycling 9129 | -8/Recycling | Identified exit to Scraptown 9304 | -8/Recycling | Build established: Bothacker-Skirmisher 9673 | -8/Recycling | Scanned before Scraplab entrance 9798 | -8/Recycling | Discovered new exit (range 15) 9923 | -8/Recycling | Build established: Commander-Skirmisher 10359 | -8/Recycling | Entered Scraplab 10389 | -8/Recycling | Entered Scraptown 10389 | -8/Scraptown | Accompanied by 5 allies 10389 | -8/Scraptown | System corruption cleaned by C-Scrubber 10457 | -8/Scraptown | Visited Spacefarers 10508 | -8/Scraptown | Turned away by UFD registrar 10508 | -8/Scraptown | Turned away by UFD registrar 10519 | -8/Scraptown | Visited Red Mages 10567 | -8/Scraptown | Visited Fellowship of the Rings 10586 | -8/Scraptown | Visited CPS Storage 10610 | -8/Scraptown | Heard Great Nut preacher, LISTEN AND RECITE! 10620 | -8/Scraptown | Visited Cave Peace 10652 | -8/Scraptown | Visited The Evicted 10680 | -8/Scraptown | Build established: Bothacker-Tank 10698 | -8/Scraptown | Visited Awakened 11137 | -8/Scraptown | Discovered new exit (range 11) 11256 | -8/Scraptown | Entered Factory 11256 | -6/Factory | Accompanied by 5 allies 11256 | -6/Factory | Evolved 4 slots: Utility x3, Weapon x1 11264 | -6/Factory | Discovered new exit (range 6) 11352 | -6/Factory | Lost 4 allies 11488 | -6/Factory | Discovered new exit (range 5) 11532 | -6/Factory | Identified exit to Garrison 11532 | -6/Factory | Entered Garrison 11532 | -6/Garrison | Accompanied by 3 allies 11565 | -6/Garrison | Build established: Scavenger-Skirmisher 11577 | -6/Garrison | Lost 4 allies 11587 | -6/Garrison | Triggered checkpoint 11813 | -6/Garrison | Garrison Relay disabled 11841 | -6/Garrison | Triggered checkpoint 11868 | -6/Garrison | Triggered checkpoint 11926 | -6/Garrison | Lost 4 parts (1n1u2w) 11972 | -6/Garrison | Triggered checkpoint 12148 | -6/Garrison | Triggered checkpoint 12151 | -6/Garrison | Triggered checkpoint 12186 | -6/Garrison | Lost 3 parts (1n1u1w) 12232 | -6/Garrison | Lost 3 allies 12298 | -6/Garrison | Triggered checkpoint 12307 | -6/Garrison | Build established: Bothacker-Tank 12367 | -6/Garrison | Garrison Relay disabled 12662 | -6/Garrison | Discovered new exit (range 10) 12847 | -6/Garrison | Build established: Commander-Tank 12869 | -6/Garrison | Discovered new exit (range 10) 12886 | -6/Garrison | Expanded RIF knowledge: Patrol Navigation 13002 | -6/Garrison | Triggered checkpoint 13077 | -6/Garrison | Discovered new exit (range 8) 13123 | -6/Garrison | Entered Factory 13123 | -5/Factory | Accompanied by 12 allies 13123 | -5/Factory | Evolved 2 slots: Power x1, Utility x1 13215 | -5/Factory | Allied Derelicts emerged from ambush trap array 13241 | -5/Factory | Lost 6 allies 13444 | -5/Factory | Identified exit to Garrison 13453 | -5/Factory | Entered Garrison 13453 | -5/Garrison | Accompanied by 2 allies 13515 | -5/Garrison | Triggered checkpoint 13534 | -5/Garrison | Build established: Bothacker-Tank 13738 | -5/Garrison | Lost 3 allies 13792 | -5/Garrison | Garrison Relay disabled 13890 | -5/Garrison | Triggered checkpoint 13902 | -5/Garrison | Spotted B-75 Beast 13938 | -5/Garrison | Lost 3 allies 13962 | -5/Garrison | Destroyed B-75 Beast 14208 | -5/Garrison | Discovered new exit (range 11) 14247 | -5/Garrison | Spotted B-75 Beast 14306 | -5/Garrison | Discovered new exit (range 57) 14306 | -5/Garrison | Discovered new exit (range 62) 14306 | -5/Garrison | Discovered new exit (range 7) 14375 | -5/Garrison | Triggered checkpoint 14440 | -5/Garrison | Lost 5 parts (2p1n2w) 14560 | -5/Garrison | Spotted B-75 Beast 14594 | -5/Garrison | Expanded RIF knowledge: Zone Cloak 14793 | -5/Garrison | Triggered checkpoint 14826 | -5/Garrison | Garrison Relay disabled 14891 | -5/Garrison | Build established: Botlord-Skirmisher 14909 | -5/Garrison | Entered Factory 14909 | -4/Factory | Evolved 2 slots: Utility x2 15247 | -4/Factory | Identified exit to Garrison 15247 | -4/Factory | Entered Garrison 15334 | -4/Garrison | Triggered checkpoint 15363 | -4/Garrison | Triggered checkpoint 15407 | -4/Garrison | Garrison Relay disabled 15515 | -4/Garrison | Spotted B-86 Titan 15525 | -4/Garrison | Triggered checkpoint 15539 | -4/Garrison | Triggered checkpoint 15577 | -4/Garrison | Build established: Botlord-Gunner 15594 | -4/Garrison | Destroyed B-86 Titan 15628 | -4/Garrison | Local machine network offline 15706 | -4/Garrison | Lost 3 parts (1p1n1u) 15806 | -4/Garrison | Discovered new exit (range 9) 15822 | -4/Garrison | Spotted B-75 Beast 15862 | -4/Garrison | Garrison Relay disabled 15892 | -4/Garrison | Expanded RIF knowledge: Watcher Feeds 15949 | -4/Garrison | Build established: Botlord-Tank 16102 | -4/Garrison | Discovered new exit (range 2) 16167 | -4/Garrison | Triggered checkpoint 16255 | -4/Garrison | Lost 3 parts (1n1u1w) 16323 | -4/Garrison | Discovered new exit (range 10) 16476 | -4/Garrison | Garrison Relay disabled 16479 | -4/Garrison | Triggered checkpoint 16515 | -4/Garrison | Build established: Botlord-Gunner 16673 | -4/Garrison | Entered Factory 16853 | -4/Factory | Discovered new exit (range 14) 17173 | -4/Factory | First assault squad dispatched 17381 | -4/Factory | Identified exit to Garrison 17381 | -4/Factory | Entered Garrison 17411 | -4/Garrison | Expanded RIF knowledge: Program Shield 17496 | -4/Garrison | Found embedded Infiltrators 17871 | -4/Garrison | Triggered checkpoint 17874 | -4/Garrison | Triggered checkpoint 17881 | -4/Garrison | Build established: Botlord-Skirmisher 17896 | -4/Garrison | Triggered checkpoint 17932 | -4/Garrison | Lost 3 allies 17964 | -4/Garrison | Lost 7 parts (1p3n2u1w) 18075 | -4/Garrison | Garrison Relay disabled 18123 | -4/Garrison | Discovered new exit (range 15) 18247 | -4/Garrison | Build established: Botlord-Gunner 18545 | -4/Garrison | Triggered checkpoint 18701 | -4/Garrison | Garrison Relay disabled 18818 | -4/Garrison | Local machine network offline 18824 | -4/Garrison | Garrison Relay disabled 18824 | -4/Garrison | Triggered checkpoint 18863 | -4/Garrison | Build established: Scavenger-Gunner 18991 | -4/Garrison | Triggered checkpoint 19045 | -4/Garrison | Triggered checkpoint 19273 | -4/Garrison | Discovered new exit (range 15) 19478 | -4/Garrison | Entered Research 19478 | -3/Research | Accompanied by 7 allies 19478 | -3/Research | Evolved 2 slots: Propulsion x1, Utility x1 19678 | -3/Research | Discovered new exit (range 14) 19685 | -3/Research | Found Gamma Bomb Array 20141 | -3/Research | Garrison activated, responded to threat 20515 | -3/Research | Build established: Botlord-Skirmisher 20718 | -3/Research | Identified exit to Research 20719 | -3/Research | Entered another Research area 20719 | -2/Research | Evolved 2 slots: Propulsion x1, Utility x1 20900 | -2/Research | Garrison activated, responded to threat 20985 | -2/Research | Lost 3 parts (1u2w) 21123 | -2/Research | Build established: Botlord-Gunner 21219 | -2/Research | First assault squad dispatched 21631 | -2/Research | System corruption reached 10% 21653 | -2/Research | Destroyed 7 combat bots 21719 | -2/Research | Build established: Botlord-Tank 21992 | -2/Research | Discovered new exit (range 81) 22311 | -2/Research | Lost 11 parts (2p3n3u3w) 22334 | -2/Research | Identified exit to Access 22337 | -2/Research | Entered Access 22337 | -1/Access | Evolved 2 slots: Utility x2 22620 | -1/Access | Build established: Botlord-Gunner 22997 | -1/Access | Discovered new exit (range 5) 23032 | -1/Access | Lost 5 allies 23084 | *** | Escaped! Last Messages --------------- 23030_ Acquired 12 matter. 23030_ U-05 Engineer lays Concrete. 23031_ R-10 Processor collects Corrupted Mic. Antimatter Reactor. 23031_ Slug penetrates G-73 Enforcer. 23031_ G-73 Enforcer destroyed. 23031_ U-05 Engineer lays Concrete. 23032_ Acquired 12 matter. 23033_ System corrupted: Matter fused (-7). 23034_ Acquired 7 matter. 23034_ R-10 Processor collects Corrupted Imp. Antigrav System. 23038_ U-05 Engineer builds a Wall. 23048_ System corrupted: Matter fused (-7). 23049_ Acquired 7 matter. 23064_ Acquired 10 matter. 23066_ System corrupted: Component data lost. 23077_ Acquired 10 matter. 23082_ >> Watcher Feeds: Established visual feed link with W-44 Eye. Map ----- +----------------------------------------------------+ | ???# ## ! # #########?????????????? | | ???# ## # # ??????????????? | | ???# # """ # # ??????????????? | | #### + """ # # " ??????????????? | | # # R" # # ""? ??????????????? | | # # """ # # "????????????????? | | + # "" w + + ? ??????????????? | | # + # # ??????????????? | | # ######+## # # ??????????????? | | # #??# ########## #########?????????????? | | ####+#### #?????# #??????????????????? | | ## * #?????# #??????????????????? | | ## #?????# #??????????????????? | | ## #?????# #??????????????????? | | ## #?????# BB BB #??????????????????? | | " ## #?????#?BB????BB?#??????????????????? | | " ##????#???????????????????????????????????? | | """ #?????????????????????????????????????????? | | """ #?????????????????????????????????????????? | | " #?#########???????????????????????????????? | | " #?# #??????????""#??????????????????? | | #?# !#?????????? #??????????????????? | | #?# #????"""""" #??????????????????? | | #/######## #????" " #??????????????????? | | # #????" "" " #??????????????????? | | + #????" "@ " #??????????????????? | | ###### # ] #?#??" " #??????????????????? | | # # # #?# """" " #??????????????????? | | # + # #?# #??????????????????? | | # # # #?# #??????????????????? | | # # # #?"""""""" "#?????????????????? | | # + #########?#"" ###????????????????? | | # # #?????????#"" # #????????????????? | | # # #?????????#"" ###????????????????? | | # ?# #?????????#T *=##?????????????????? | | ###??# #?????????#"" =%[##?????????????????? | | #???## ###????# # !=g#??????????????????? | | ##### *######### !% ############+####### | | = ! | !![% | | ! = % %gg | | ###### ####################################### | | #????# ####??## # #?????##??????# #?????????? | | #????# #??????### # ##?????????????# #?????????? | | #????# #???????# ####???????????????###?????????? | | #????# #???????##???????????????????# #?????????? | | #????# #????????????????????????????###?????????? | | #????# #???????????????????????????####?????????? | | #????# #?????????????????????????#### #####?????? | | #????# #?????????????????????????# !! #?????? | | #????# #?????????????????????????# !! #?????? | +----------------------------------------------------+ Best States ------------- Heat Dissipation 102 Coolant Potential 100 Energy Generation 45 Energy Capacity 870 Matter Stores 300 Matter Capacity 300 Sight Range 16 Terrain Scan Range 20 Terrain Scan Density 210 Jamming Range 12 Armor Coverage 600 Weapon Cycling 25 Evasion (%) 55 Targeting Accuracy 8 Melee Accuracy 5 Target Analysis 12 Recoil Reduction 6 Kinecelleration 40 Relay Coupler Types 5 Relay Coupler Value 146 Item Schematics ----------------- None Robot Schematics ------------------ None Fabricated ------------ Nothing Repaired ---------- Nothing Alien Tech Used ----------------- None Achievements -------------- None Challenges ------------ None Game ------ Seed ChromaticArchitectSplitter Manual? 0 Play Time 02:40:53 Cumulative 194.3 hours Start 2025.08.17 @ 08:15:25 End 2025.08.17 @ 10:56:46 Sessions 1 Manual Loads 0 Difficulty Rogue Special Mode None Game No. 162 Rogue 162 Adventurer 0 Explorer 0 Win Type 0 Total 6 Types 4/0/1/1/0/0/0/0/0/0 Lore% 80 Gallery% 71 Achievement% 66 Wizard Run 0 Options --------- Layout 1 ASCII 0 Keyboard 0 Movement Numpad Keybinds 0 Fullscreen 1 Font 24/Smallcaps Map View 50x35 Zoom Use 0% Tactical HUD 1 Map Filters NONE Filters NONE Steam 1 RUN: 0ae14083-a101-4a65-93be-35c0de281045